{"text_format":"1","workbook":"xlsx","n_sheets":1,"sheets":["S4G_Homework 6"],"not_rendered":{"charts":0,"images":1,"macros":1,"external_links":0,"defined_names":1,"comments":0,"pivot_tables":0},"unopened":[],"bounds":{"document_bytes":16777216,"sheet_cells":100000,"rows_first":2000,"rows_last":500,"rows_between":2000,"halvings":0,"cell_chars":16384,"cell_head_chars":4096},"cells_cut":0,"cells_raw":0,"read":"whole","date_system":"1900"}

{"sheet":"S4G_Homework 6","index":0,"n_rows":130,"n_cols":42,"rows_kept":130,"cut":false,"hidden":false,"merged":[[10,28,10,30],[10,31,11,32],[58,7,58,19],[2,2,3,5],[2,6,3,32],[5,2,6,5],[5,6,6,32],[8,1,8,32],[12,31,13,32],[19,3,19,30],[20,3,25,30],[27,3,27,30],[28,3,33,30],[37,35,37,38],[39,5,39,7],[39,8,39,9],[41,1,41,2],[41,3,41,5],[41,7,41,8],[41,14,43,31],[41,35,41,37],[43,6,43,7],[43,8,43,9],[37,1,37,2],[37,3,37,5],[37,7,37,9],[37,14,39,31],[49,35,49,37],[45,1,45,2],[45,3,45,5],[45,7,45,8],[45,14,47,31],[45,35,45,37],[47,6,47,7],[47,8,47,9],[49,1,49,2],[49,3,49,4],[49,5,49,6],[49,7,49,9],[49,14,51,31],[66,2,66,31],[67,2,71,31],[78,35,78,38],[79,5,79,7],[52,6,52,7],[52,8,52,9],[64,22,64,23],[64,17,64,18],[59,7,59,11],[59,12,59,15],[60,12,60,15],[59,16,59,19],[60,16,60,19],[60,35,60,36],[75,13,75,15],[76,15,76,17],[86,5,86,6],[86,7,86,8],[93,26,93,27],[100,20,100,22],[84,10,84,11],[120,2,120,3],[121,7,121,8],[104,3,110,27],[103,3,103,27],[94,9,94,10],[95,12,95,13],[97,21,97,23],[77,17,80,31],[126,24,126,25],[129,27,129,32],[116,12,116,13],[117,11,117,12],[121,13,122,14],[121,15,122,15],[115,21,115,32],[116,21,124,32],[82,14,82,31],[83,14,87,31]]}
[]
[]
[null,null,"Name :"]
[]
[]
[null,null,"Teacher :"]
[]
[]
[null,"General Official Homework 6                                                      Created by Mr Lafferty                                                                                                                                                                                                 St. Ninian's High School"]
[]
[null,null,null,"This homework covers topics",null,null,null,null,null,null,null,null,null,null,null,null,null,null,null,null,null,null,null,null,null,null,null,null,"Score"]
[]
[null,null,null,"Basic Number Operations",null,null,null,null,null,null,null,null,null,null,null,null,null,null,null,"Algebraic Equations",null,null,null,null,null,null,null,null,null,null,null,21]
[]
[null,null,null,"Distance Speed Time",null,null,null,null,null,null,null,null,null,null,null,null,null,null,null,"Perimeter"]
[]
[null,null,null,"Percentage & Money",null,null,null,null,null,null,null,null,null,null,null,null,null,null,null,"Trigonometry"]
[]
[]
[null,null,null,"Teacher Comments :"]
[]
[]
[]
[]
[]
[]
[]
[null,null,null,"Pupil's Comment :"]
[]
[]
[]
[]
[]
[]
[]
[null,"1. ","Carry out the following instructions.",null,null,null,null,null,null,null,null,null,null,null,"( NON - CALCULATOR QUESTION )"]
[]
[null,"(a)",null,{"$f":"ROUND(RAND()*(950-730)+730,1)","v":865.2},null,null,"-",{"$f":"ROUND(RAND()*(550-330)+330,1)","v":332.6},null,null,null,"Working : ",null,null,null,null,null,null,null,null,null,null,null,null,null,null,null,null,null,null,null,null,null,null,null,{"$f":"I40","v":532.6}]
[]
[null,null,"Answer",null,null,null,null,null,{"$f":"D38-H38","v":532.6}]
[]
[null,"(b)",null,{"$f":"ROUND(RAND()*(50-15)+15,1)","v":46.5},null,null,"x",{"$f":"ROUND(RAND()*(9-3)+3,0)*10","v":30},null,null,null,"Working : ",null,null,null,null,null,null,null,null,null,null,null,null,null,null,null,null,null,null,null,null,null,null,null,{"$f":"I44","v":1395}]
[]
[null,null,"Answer",null,null,null,null,null,{"$f":"D42*H42","v":1395}]
[]
[null,"(c) ",null,{"$f":"ROUND(RAND()*(98-32)+32,1)*H46","v":270.5},null,null,"÷",{"$f":"ROUND(RAND()*(9-4)+4,0)","v":5},null,null,null,"Working : ",null,null,null,null,null,null,null,null,null,null,null,null,null,null,null,null,null,null,null,null,null,null,null,{"$f":"I48","v":54.1}]
[]
[null,null,"Answer :",null,null,null,null,null,{"$f":"D46/H46","v":54.1}]
[]
[null,"(d)",null,{"$f":"ROUND(RAND()*(9-2)+2,0)*10","v":40},null,"% of",null,{"$f":"ROUND(RAND()*(9-2)+2,1)*10","v":23},null,null,null,"Working : ",null,null,null,null,null,null,null,null,null,null,null,null,null,null,null,null,null,null,null,null,null,null,null,{"$f":"I53","v":9.1999999999999993}]
[]
[]
[null,null,"Answer :",null,null,null,null,null,{"$f":"H50*D50/100","v":9.1999999999999993},null,null,null,null,null,null,null,null,null,null,null,null,null,null,null,null,null,null,null,"( 5 marks )"]
[]
[]
[null,"2.","Liam's new car has an on-board computer."]
[null,null,"At the end of a journey the car’s computer displays the information below."]
[]
[null,null,null,null,null,null,null,"Journey information"]
[null,null,null,null,null,null,null,"Distance",null,null,null,null,{"$f":"AJ61*AJ63","v":239.16666666666666},null,null,null,"miles"]
[null,null,null,null,null,null,null,"Averaage Speed",null,null,null,null,{"$f":"AJ61","v":70},null,null,null,"miles/hour",null,null,null,null,null,null,null,null,null,null,null,null,null,null,null,null,null,null,{"$f":"ROUND(RAND()*(14-6)+6,0)*5","v":70}]
[null,null,null,null,null,null,null,null,null,null,null,null,null,null,null,null,null,null,null,null,null,null,null,null,null,null,null,null,null,null,null,null,null,null,null,{"$f":"AK65/60","v":0.41666666666666669}]
[null,null,"Use the information above to calculate the time he has taken for his journey.",null,null,null,null,null,null,null,null,null,null,null,null,null,null,null,null,null,null,null,null,null,null,null,null,null,null,null,null,null,null,null,null,{"$f":"AJ65+AJ62","v":3.4166666666666665}]
[null,null,"Give your answer in hours and minutes."]
[null,null,null,null,null,null,null,null,null,null,null,null,null,"Answer",null,null,null,null,null,"hrs",null,null,null,null,"mins",null,null,null,"( 3 marks )",null,null,null,null,null,null,{"$f":"ROUND(RAND()*(3-1)+1,0)","v":3},{"$f":"ROUND(RAND()*(11-1)+1,0)*5","v":25}]
[]
[null,null,"Working :"]
[]
[]
[]
[]
[]
[]
[]
[]
[null,"3.","Gordon buys an antique teapot for",null,null,null,null,null,null,null,null,null,null,{"$f":"ROUND(RAND()*(19-1)+1,0)*5","v":80},null,null,null,null,null,null,null,null,null,null,null,null,null,null,"( 3 marks )"]
[null,null,"He sells it on an Internet auction site for",null,null,null,null,null,null,null,null,null,null,null,null,{"$f":"N76+AJ79/100*N76","v":120}]
[null,null,"Calculate his percentage profit.",null,null,null,null,null,null,null,null,null,null,null,"Working :"]
[null,null,null,null,null,null,null,null,null,null,null,null,null,null,null,null,null,null,null,null,null,null,null,null,null,null,null,null,null,null,null,null,null,null,null,{"$f":"ROUND(RAND()*(19-1)+1,0)*5","v":50}]
[null,"Answer :",null,null,null,null,null,null,"%"]
[]
[]
[null,"4."," Solve algebraically the equation.",null,null,null,null,null,null,null,null,null,null,null,"Working :"]
[]
[null,null,{"$f":"ROUND(RAND()*(9-5)+5,0)","v":7},{"$f":"CHAR(RAND()*(122-97)+97)","v":"t"},"-",{"$f":"ROUND(RAND()*(5-2)+2,0)","v":5},"=",{"$f":"ROUND(RAND()*(4-2)+2,0)","v":3},{"$f":"D85","v":"t"},"+",{"$f":"(C85*H87-F85)-H85*H87","v":15}]
[null,null,{"$f":"ROUND(RAND()*(9-(1))+(1),0)","v":5}]
[null,"Answer :",null,null,null,null,null,{"$f":"ROUND(RAND()*(9-2)+(2),0)","v":5},null,null,null,null,null,null,null,null,null,null,null,null,null,null,null,null,null,null,null,null,null,null,null,null,null,null,null,null,null,null,null,{"$f":"H87","v":5}]
[]
[null,null,null,null,null,null,null,null,null,null,null,null,null,null,null,null,null,null,null,null,null,null,null,null,null,null,null,null,"( 3 marks )"]
[]
[]
[null,"5.","Jordan is making a sign for Capaldi’s Ice Cream Parlour.",null,null,null,null,null,null,null,null,null,null,null,null,null,null,null,null,null,null,null,null,null,null,null,null,null,null,null,null,null,null,null,null,null,null,null,null,null,null,{"$f":"ROUND(RAND()*(1-0)+0,0)","v":1}]
[null,null,"The sign will have two equal straight edges and a semi-circular edge."]
[null,null,null,null,null,null,null,null,null,null,null,null,null,null,null,null,null,null,null,null,null,null,null,null,null,null,{"$f":"CONCATENATE(AN95,AO95)","v":"0.7m"}]
[null,null,"Each straight edge is",null,null,null,null,null,null,{"$f":"V98","v":2.5099999999999998},null,"metres long and",null,null,null,null,null,null,null,null,null,null,null,null,null,null,null,null,null,null,null,null,null,null,null,null,null,null,null,{"$f":"ROUND(RAND()*(0.9-0.3)+0.3,1)","v":0.7},"m"]
[null,null,"the radius of the semi-circle is",null,null,null,null,null,null,null,null,null,{"$f":"AN95","v":0.7},null,"metres.",null,null,null,null,null,null,null,null,null,null,null,null,null,null,null,null,null,null,null,null,null,null,null,null,{"$f":"CONCATENATE(AN95,AO95)","v":"0.7m"}]
[]
[null,null,null,null,null,null,null,null,null,null,null,null,null,null,null,null,null,null,null,null,null,{"$f":"ROUND(RAND()*(4-2)+2,2)","v":2.5099999999999998},null,null,"m"]
[null,null,"Calculate the perimeter of the sign to 1 decimal place."]
[]
[null,null,null,null,null,null,null,null,null,null,null,null,null,null,null,null,"Perimeter = ",null,null,null,null,null,null,"m",null,null,null,null,null,null,null,null,null,null,null,null,null,null,null,{"$f":"ROUND(V98+V98+(0.5*PI()*2*AN95),1)","v":7.2}]
[]
[]
[null,null,null,"Working :"]
[]
[]
[]
[]
[]
[]
[]
[null,null,null,null,null,null,null,null,null,null,null,null,null,null,null,null,null,null,null,null,null,null,null,null,null,null,null,null,"( 4 marks )"]
[]
[]
[null,"6.","A boat elevator is used to take a boat from the lower canal to the upper canal."]
[null,null,"The boat elevator is in the shape of a triangle.",null,null,null,null,null,null,null,null,null,null,null,null,null,null,null,null,null,null,"Working :"]
[null,null,"The length of the hypotenuse is",null,null,null,null,null,null,null,null,null,{"$f":"AN122","v":79.860390655688306},null,"metres."]
[null,null,"The height of the triangle is",null,null,null,null,null,null,null,null,{"$f":"N122","v":26},null,"metres.",null,null,null,null,null,null,null,null,null,null,null,null,null,null,null,null,null,null,null,null,null,null,null,null,null,{"$f":"ROUND(SQRT((C121*C121)+(K118-I124)*(K118-I124)),1)","v":0}]
[null,null,null,null,null,{"$f":"ROUND(RAND()*(40-15)+15,0)","v":33}]
[]
[]
[null,null,null,null,null,null,null,{"$f":"AN122","v":79.860390655688306},null,"m",null,null,null,{"$f":"ROUND(RAND()*(40-15)+15,0)","v":26},null,"m",null,null,null,null,null,null,null,null,null,null,null,null,null,null,null,null,null,null,null,null,null,null,null,{"$f":"N122/SIN(AN127*PI()/180)","v":79.860390655688306}]
[]
[null,null,null,null,null,null,null,null,null,"xo"]
[]
[]
[null,null,"Calculate the size of the shaded angle x °to the nearest degree.",null,null,null,null,null,null,null,null,null,null,null,null,null,null,null,null,null,null,null,null,null,null,null,"o",null,null,null,null,null,null,null,null,null,null,null,null,{"$f":"ROUND(RAND()*(20-10)+10,0)","v":19}]
[null,null,null,null,null,null,null,null,null,null,null,null,null,null,null,null,null,null,null,null,null,null,null,null,null,null,null,null,"( 3 marks )"]
[]
[null,null,null,null,null,null,null,null,null,null,null,null,null,null,null,null,null,null,null,null,null,null,null,null,null,null,null,"Total marks 21 "]